bitfinex/quotes_BTCUSD_20210402
["timestamp","ask_amount","ask_price","bid_price","bid_amount"]
[1617391978106,0.32119541,58814.0,58792.0,0.0044]
[1617391978107,0.00254786,58809.0,58792.0,0.0044]
[1617391978301,0.002,58810.0,58792.0,0.0044]
[1617391978502,0.1622538,58809.0,58793.0,0.00045995]
[1617391978720,0.002,58810.0,58793.0,0.83820615]
[1617391978924,0.00254786,58813.0,58800.0,0.16]
[1617391979125,0.50368314,58835.0,58801.0,0.39540369]
[1617391979126,0.00254786,58822.0,58801.0,0.39540369]
[1617391979327,0.1622538,58821.0,58803.0,0.0044]
[1617391979524,0.1622538,58821.0,58804.0,0.00045995]
[1617391979723,0.16480166,58822.0,58803.0,0.0044]
[1617391979919,0.06915127,58822.0,58803.0,0.0044]
[1617391980123,0.00254786,58822.0,58804.0,0.00045995]
[1617391980322,0.00254786,58825.0,58808.0,0.1696]
[1617391980526,0.1622538,58824.0,58808.0,0.1696]
[1617391980727,0.1622538,58824.0,58808.0,0.0056]
[1617391980921,0.06419059,58823.0,58808.0,0.0056]
[1617391981123,0.1622538,58822.0,58804.0,0.004]
[1617391981354,0.255041,58821.0,58796.0,0.0052]
[1617391981552,0.1622538,58820.0,58802.0,0.004]
[1617391981752,0.2622538,58820.0,58803.0,0.0044]
[1617391981951,0.1622538,58819.0,58796.0,0.004]
[1617391982155,0.2122538,58819.0,58797.0,0.00300781]
[1617391982358,0.1622538,58818.0,58795.0,0.00300781]
[1617391982558,0.1622538,58818.0,58790.0,0.00300781]
[1617391982559,0.340163,58808.0,58790.0,0.00300781]
[1617391982757,0.2622538,58807.0,58782.0,0.00300781]
[1617391982961,0.169,58805.0,58780.0,0.00300781]
[1617391983157,0.41399045,58804.0,58780.0,0.00300781]
[1617391983360,0.5572538,58803.0,58780.0,0.00300781]
[1617391983556,0.545,58803.0,58780.0,0.84075401]
[1617391983756,0.545,58803.0,58779.0,0.29583725]
[1617391983757,0.355162,58793.0,58779.0,0.29583725]
[1617391983973,0.305162,58793.0,58779.0,1.13358345]
[1617391984172,0.2,58792.0,58779.0,0.29583725]
[1617391984371,0.305162,58793.0,58779.0,0.29583725]
[1617391985571,0.46679095,58792.0,58779.0,0.29083725]
[1617391985772,0.215,58792.0,58779.0,0.29083725]
[1617391986173,0.215,58792.0,58774.0,0.00300781]
[1617391986377,0.215,58792.0,58773.0,0.02802887]
[1617391986378,0.00300781,58790.0,58773.0,0.02802887]
[1617391986606,0.72,58789.0,58773.0,0.02802887]
[1617391986804,0.00300781,58787.0,58773.0,0.02802887]
[1617391987203,0.00300781,58787.0,58774.0,0.8377462]
[1617391987608,0.00279917,58789.0,58773.0,0.02802887]
[1617391987803,0.00279917,58789.0,58773.0,0.86577507]
[1617391987804,0.24,58788.0,58773.0,0.86577507]
[1617391988003,0.00279917,58789.0,58773.0,0.02802887]
[1617391988479,0.00279917,58789.0,58775.0,0.0048]
[1617391988677,0.00279917,58789.0,58776.0,1.2262652]
[1617391988870,0.00279917,58789.0,58777.0,0.25802146]
[1617391989071,0.00279917,58789.0,58778.0,0.388519]
[1617391989468,0.00279917,58789.0,58778.0,1.2262652]
[1617391989670,0.00279917,58789.0,58778.0,0.388519]
[1617391989877,0.00279917,58789.0,58779.0,0.375]
[1617391990078,0.00279917,58789.0,58788.0,0.154]
[1617391990273,0.00279917,58789.0,58788.0,0.542519]
[1617391990474,0.00279917,58789.0,58788.0,0.388519]
[1617391990673,0.00279917,58789.0,58780.0,0.35976524]
[1617391990870,0.00279917,58789.0,58780.0,0.0046]
[1617391991074,0.00279917,58789.0,58778.0,0.388519]
[1617391991277,0.00279917,58789.0,58777.0,0.08853569]
[1617391991474,0.00279917,58789.0,58774.0,0.004]
[1617391991670,0.00279917,58789.0,58772.0,0.00044]
[1617391991868,0.00279917,58789.0,58773.0,0.03202887]
[1617391992471,0.00279917,58789.0,58774.0,0.8377462]
[1617391992674,0.00279917,58789.0,58779.0,0.158]
[1617391992875,0.00279917,58789.0,58780.0,0.388519]
[1617391993273,0.00279917,58789.0,58776.0,0.35416524]
[1617391993476,0.00279917,58789.0,58775.0,0.8377462]
[1617391993871,0.00279917,58789.0,58774.0,0.8377462]
[1617391994072,0.00279917,58789.0,58775.0,0.135]
[1617391994274,0.00279917,58789.0,58776.0,0.8377462]
[1617391994475,0.00279917,58789.0,58777.0,0.388519]
[1617391994675,0.00279917,58789.0,58778.0,0.8377462]
[1617391994876,0.00279917,58789.0,58784.0,0.153]
[1617391995081,0.00279917,58789.0,58785.0,0.388519]
[1617391995481,0.00279917,58789.0,58788.0,0.388519]
[1617391995680,0.00279917,58789.0,58788.0,0.593519]
[1617391995879,0.00279917,58789.0,58788.0,0.388519]
[1617391997100,0.00279917,58789.0,58788.0,0.39604733]
[1617391997499,0.00279917,58789.0,58788.0,0.00752833]
[1617391997701,0.00279917,58789.0,58788.0,0.39604733]
[1617391998703,0.00279917,58789.0,58788.0,0.00752833]
[1617391999109,0.16306078,58801.0,58788.0,0.00752833]
[1617391999308,0.00080698,58799.0,58788.0,0.00752833]
[1617391999751,0.255159,58793.0,58788.0,0.00752833]
[1617392001541,0.305159,58793.0,58788.0,0.00752833]
[1617392001741,0.05,58793.0,58788.0,0.00752833]
[1617392001938,0.39021,58797.0,58788.0,0.00752833]
[1617392002142,0.5524638,58797.0,58788.0,0.00752833]
[1617392002350,0.39021,58797.0,58788.0,0.00752833]
[1617392002548,0.5524638,58797.0,58788.0,0.00752833]
[1617392002756,0.255165,58791.0,58788.0,0.00752833]
[1617392003149,0.305165,58791.0,58788.0,0.00752833]
[1617392003615,0.300165,58791.0,58788.0,0.00752833]
[1617392003812,0.340247,58790.0,58788.0,0.00752833]
[1617392005211,0.340247,58790.0,58788.0,0.00612833]
[1617392005813,0.255165,58789.0,58788.0,0.00612833]
[1617392008019,0.51318646,58789.0,58788.0,0.00612833]
[1617392008216,0.56318646,58789.0,58788.0,0.00612833]
[1617392008416,4.59318646,58789.0,58788.0,0.00612833]
[1617392008614,5.5574188,58789.0,58788.0,0.00612833]
[1617392009024,5.7264188,58789.0,58788.0,0.00612833]
[1617392009216,5.9764188,58789.0,58788.0,0.00612833]
[1617392009420,5.80840814,58789.0,58788.0,0.00612833]
[1617392009617,5.8074188,58789.0,58788.0,0.00612833]
[1617392010019,5.80939709,58789.0,58788.0,0.00612833]
[1617392010234,5.8074188,58789.0,58788.0,2.833e-05]
[1617392010431,0.00080698,58787.0,58773.0,0.02802887]
[1617392010628,0.00080698,58785.0,58773.0,0.02802887]
[1617392010830,0.00080698,58783.0,58773.0,0.02802887]
[1617392011230,0.255235,58778.0,58773.0,0.02802887]
[1617392012229,0.305235,58778.0,58773.0,0.02802887]
[1617392012431,0.255238,58776.0,58773.0,0.02802887]
[1617392012629,0.225238,58776.0,58773.0,0.02802887]
[1617392012847,0.22777981,58776.0,58773.0,0.02802887]
[1617392013453,0.22277981,58776.0,58773.0,0.02802887]
[1617392013847,0.22277981,58776.0,58773.0,0.02302887]
[1617392015055,0.255205,58780.0,58773.0,0.02302887]
[1617392015255,0.00080698,58781.0,58773.0,0.02302887]
[1617392015479,0.00080698,58782.0,58773.0,0.02302887]
[1617392015674,0.00080698,58783.0,58773.0,0.02302887]
[1617392016276,0.255192,58783.0,58773.0,0.02302887]
[1617392016475,0.700192,58783.0,58773.0,0.02302887]
[1617392017275,0.445,58783.0,58773.0,0.02302887]
[1617392017477,0.57,58782.0,58773.0,0.02302887]
[1617392017676,0.00080698,58787.0,58778.0,0.157]
[1617392017880,0.16,58788.0,58773.0,0.02302887]
[1617392018105,0.00080698,58787.0,58773.0,0.02302887]
[1617392018302,0.185,58787.0,58773.0,0.02302887]
[1617392018570,0.16,58788.0,58773.0,0.02302887]
[1617392018973,0.00280698,58791.0,58773.0,0.02302887]
[1617392018974,0.002,58791.0,58774.0,0.8377462]
[1617392019177,0.002,58791.0,58775.0,0.388519]
[1617392019376,0.00080698,58790.0,58776.0,0.04]
[1617392019576,0.00080698,58794.0,58775.0,0.004]
[1617392019777,0.14080698,58794.0,58775.0,0.8417462]
[1617392019981,0.14080698,58794.0,58785.0,0.156]
[1617392019982,0.14,58794.0,58785.0,0.156]
[1617392020180,0.00080698,58793.0,58775.0,0.004]
[1617392020378,0.00080698,58793.0,58779.0,0.161]
[1617392020379,0.17,58792.0,58779.0,0.161]
[1617392020575,0.31306078,58791.0,58775.0,0.344183]
[1617392020780,0.00080698,58789.0,58773.0,0.02302887]
[1617392020980,0.00080698,58787.0,58773.0,0.02302887]
[1617392021172,0.41886276,58787.0,58773.0,0.02302887]
[1617392021377,0.00080698,58785.0,58773.0,0.02302887]
[1617392021577,0.255231,58780.0,58773.0,0.02302887]
[1617392021778,0.716411,58780.0,58773.0,0.02302887]
[1617392021972,0.766411,58780.0,58773.0,0.02302887]
[1617392022179,0.52889,58780.0,58773.0,0.02302887]
[1617392022376,0.155,58779.0,58773.0,0.02302887]
[1617392023182,0.255245,58777.0,58773.0,0.02302887]
[1617392023577,0.305245,58777.0,58773.0,0.02302887]
[1617392023780,0.1622538,58776.0,58773.0,0.02302887]
[1617392023985,0.25580198,58775.0,58773.0,0.02302887]
[1617392024179,4.7475188,58774.0,58773.0,0.02302887]
[1617392024379,4.8475188,58774.0,58773.0,0.02302887]
[1617392025177,5.1475188,58774.0,58773.0,0.02302887]
[1617392027980,4.685265,58774.0,58773.0,0.02302887]
[1617392028803,4.8475188,58774.0,58773.0,0.02302887]
[1617392029203,4.685265,58774.0,58773.0,0.02302887]
[1617392029608,5.185265,58774.0,58773.0,0.02302887]
[1617392029802,5.2475188,58774.0,58773.0,0.02302887]
[1617392030205,5.5155188,58774.0,58773.0,0.02302887]
[1617392030406,5.185265,58774.0,58773.0,0.02302887]
[1617392030610,5.085265,58774.0,58773.0,0.02302887]
[1617392030804,5.3475188,58774.0,58773.0,0.00302887]
[1617392032032,5.3475188,58774.0,58772.0,0.00044]
[1617392032033,4.03,58772.0,58769.0,0.00066]
[1617392032235,2.74,58770.0,58769.0,0.00066]
[1617392032432,2.9022538,58770.0,58769.0,0.00066]
[1617392033027,4.2922538,58770.0,58769.0,0.00066]
[1617392033427,5.0022538,58770.0,58769.0,0.00066]
[1617392034305,2.35306078,58769.0,58762.0,6e-05]
[1617392034499,0.00080698,58767.0,58762.0,6e-05]
[1617392034703,0.71,58766.0,58762.0,6e-05]
[1617392034900,0.255326,58764.0,58762.0,6e-05]
[1617392035102,0.405326,58764.0,58762.0,6e-05]
[1617392036301,4.6,58763.0,58762.0,6e-05]
[1617392036700,4.94,58763.0,58762.0,6e-05]
[1617392037101,5.39,58763.0,58762.0,6e-05]
[1617392038102,5.83964,58763.0,58762.0,6e-05]
[1617392039310,1.28964,58763.0,58762.0,6e-05]
[1617392039512,0.24,58763.0,58762.0,6e-05]
[1617392039715,0.5,58770.0,58762.0,6e-05]
[1617392040311,0.15,58769.0,58762.0,6e-05]
[1617392040719,0.15,58769.0,58763.0,0.09]
[1617392040923,0.5,58773.0,58760.0,0.25516568]
[1617392041115,0.5,58773.0,58761.0,0.8678662]
[1617392041509,0.5,58773.0,58762.0,0.8328062]
[1617392041723,0.5,58784.0,58763.0,0.8328062]
[1617392041925,1.075,58784.0,58765.0,0.0048]
[1617392042127,1.125,58784.0,58765.0,0.0048]
[1617392042322,0.1,58783.0,58765.0,0.0048]
[1617392042527,0.255221,58781.0,58769.0,0.157]
[1617392042927,0.1,58783.0,58770.0,0.8328062]
[1617392043132,0.55,58784.0,58778.0,0.153]
[1617392043133,0.5,58784.0,58778.0,0.153]
[1617392043325,0.5,58784.0,58778.0,0.148]
[1617392043732,0.93548195,58800.0,58778.0,0.148]
[1617392043927,0.3271938,58799.0,58781.0,0.0046]
[1617392044130,0.1671938,58798.0,58781.0,0.0046]
[1617392044364,0.215,58797.0,58781.0,0.0046]
[1617392044564,0.1671938,58796.0,58774.0,0.00300781]
[1617392044762,0.4271938,58796.0,58774.0,0.00300781]
[1617392044960,0.6691938,58795.0,58774.0,0.00300781]
[1617392045159,0.1671938,58794.0,58773.0,0.004]
[1617392045359,0.1671938,58794.0,58773.0,0.104]
[1617392045563,0.255205,58785.0,58773.0,0.104]
[1617392045759,0.305205,58785.0,58773.0,0.104]
[1617392046161,0.1,58790.0,58773.0,0.104]
[1617392046162,0.1,58790.0,58774.0,1.08753188]
[1617392046373,0.0026,58791.0,58789.0,0.164]
[1617392046562,0.0026,58791.0,58790.0,0.25472568]
[1617392046763,0.0026,58791.0,58790.0,1.3]
[1617392046976,0.50055906,58795.0,58789.0,0.47068]
[1617392047373,0.00197271,58795.0,58789.0,0.47068]
[1617392047577,0.01966046,58799.0,58789.0,0.47068]
[1617392047779,0.03973454,58800.0,58790.0,1.355]
[1617392047980,0.03973454,58800.0,58792.0,0.428519]
[1617392048178,0.02,58800.0,58792.0,0.04]
[1617392048378,0.05923709,58814.0,58790.0,1.355]
[1617392048643,0.48841318,58813.0,58792.0,0.0022]
[1617392048841,0.1671938,58812.0,58792.0,0.0022]
[1617392049042,0.1691938,58812.0,58793.0,0.00752647]
[1617392049245,0.0228779,58810.0,58794.0,0.156]
[1617392049442,0.4223018,58809.0,58794.0,0.156]
[1617392049639,0.1671938,58808.0,58794.0,0.156]
[1617392049841,0.29150812,58808.0,58793.0,0.00752647]
[1617392050043,0.2123075,58807.0,58793.0,0.00752647]
[1617392050237,0.0723075,58807.0,58793.0,0.00752647]
[1617392050441,0.07231128,58806.0,58793.0,0.00752647]
[1617392050645,0.672,58813.0,58793.0,0.00752647]
[1617392050646,0.672,58813.0,58793.0,0.07855647]
[1617392050842,0.02,58800.0,58793.0,0.07855647]
[1617392051441,0.01,58800.0,58795.0,0.156]
[1617392051644,0.01,58800.0,58798.0,0.255068]
[1617392051840,0.005,58800.0,58798.0,0.255068]
[1617392052044,0.005,58800.0,58796.0,0.04]
[1617392052846,0.005,58800.0,58795.0,0.156]
[1617392052847,0.005,58800.0,58793.0,0.07855647]
[1617392053048,0.005,58800.0,58793.0,0.00752647]
[1617392053643,0.005,58800.0,58795.0,0.164]
[1617392054646,0.005,58800.0,58796.0,0.00752717]
[1617392054842,0.005,58800.0,58796.0,0.04752717]
[1617392055045,0.005,58800.0,58799.0,2.456]
[1617392055253,0.005,58800.0,58799.0,2.884519]
[1617392055452,0.005,58800.0,58799.0,4.11226894]
[1617392055656,0.005,58800.0,58799.0,4.16226894]
[1617392055848,0.005,58800.0,58799.0,5.89226894]
[1617392056048,0.005,58800.0,58799.0,6.89226894]
[1617392059072,0.005,58800.0,58799.0,6.99226894]
[1617392059675,0.005,58800.0,58799.0,6.05946274]
[1617392059878,0.005,58800.0,58799.0,6.01698966]
[1617392060300,0.005,58800.0,58799.0,6.84979586]
[1617392060500,0.005,58800.0,58799.0,6.01698966]
[1617392061103,0.0026465,58801.0,58800.0,4.03]
[1617392061300,0.0026465,58801.0,58800.0,4.81268424]
[1617392061505,0.0026465,58801.0,58800.0,5.81268424]
[1617392061707,0.0026465,58801.0,58800.0,1.78268424]
[1617392061904,0.0026465,58801.0,58800.0,0.428519]
[1617392062114,0.0545265,58801.0,58800.0,0.04]
[1617392062320,4.50450742,58801.0,58800.0,0.04]
[1617392062511,5.16950742,58801.0,58800.0,0.04]
[1617392062736,5.33850742,58801.0,58800.0,0.04]
[1617392062933,5.00231362,58801.0,58800.0,0.04]
[1617392063535,0.7195265,58801.0,58800.0,0.04]
[1617392063798,0.0545265,58801.0,58800.0,0.04]
[1617392063997,0.0026465,58801.0,58799.0,0.00752692]
[1617392064196,0.0026465,58801.0,58800.0,0.388519]
[1617392064397,0.0026465,58801.0,58800.0,0.523519]
[1617392064793,0.0026465,58801.0,58799.0,0.00752692]
[1617392066791,0.15,58811.0,58799.0,0.00752692]
[1617392066990,0.3171938,58811.0,58799.0,0.00752692]
[1617392067191,0.22,58810.0,58799.0,0.00752692]
[1617392067590,0.32,58810.0,58799.0,0.00752692]
[1617392068391,0.1,58810.0,58799.0,0.00752692]
[1617392068604,0.5,58826.0,58800.0,0.8728062]
[1617392068805,0.5,58826.0,58816.0,0.162]
[1617392069001,0.6691938,58826.0,58816.0,0.58983]
[1617392069199,0.502,58826.0,58816.0,0.58983]
[1617392069392,0.502,58826.0,58816.0,0.42783]
[1617392069595,0.002,58826.0,58816.0,0.42783]
[1617392069999,0.1671938,58825.0,58816.0,0.43083781]
[1617392070198,0.25278712,58832.0,58817.0,0.00300781]
[1617392070395,0.002,58832.0,58817.0,0.23387441]
[1617392070603,0.002,58832.0,58818.0,0.155]
[1617392070799,0.1671938,58831.0,58820.0,0.165]
[1617392071008,0.1641938,58831.0,58817.0,0.00700781]
[1617392071203,0.36499834,58830.0,58811.0,0.00300781]
[1617392071400,0.36699834,58830.0,58811.0,0.00300781]
[1617392071597,0.20480454,58830.0,58811.0,0.00300781]
[1617392072002,0.25480454,58830.0,58811.0,0.00300781]
[1617392072600,0.41699834,58830.0,58811.0,0.00300781]
[1617392072796,0.1621938,58829.0,58811.0,0.00300781]
[1617392072997,0.2621938,58829.0,58811.0,0.00300781]
[1617392073228,0.2641938,58829.0,58811.0,0.00300781]
[1617392073432,0.15,58828.0,58811.0,0.00300781]
[1617392073627,0.102,58828.0,58811.0,0.00300781]
[1617392073829,0.152,58828.0,58811.0,0.00300781]
[1617392074629,0.052,58828.0,58811.0,0.00300781]
[1617392074828,0.2141938,58828.0,58811.0,0.00300781]
[1617392075027,0.1641938,58828.0,58811.0,0.00300781]
[1617392075238,0.2141938,58828.0,58811.0,0.00300781]
[1617392075629,0.1621938,58827.0,58811.0,0.00300781]
[1617392075854,0.1641938,58827.0,58811.0,0.00300781]
[1617392076058,0.1621938,58826.0,58803.0,0.39795155]
[1617392076260,0.2121938,58826.0,58803.0,0.00300781]
[1617392076462,0.5601938,58825.0,58800.0,0.00300781]
[1617392076658,0.41498092,58824.0,58800.0,0.00300781]
[1617392076857,0.002,58819.0,58799.0,0.00752692]
[1617392077055,0.2121938,58818.0,58799.0,0.00752692]
[1617392077257,0.41498092,58817.0,58799.0,0.00752692]
[1617392077461,0.2621938,58816.0,58799.0,0.00752692]
[1617392077656,0.340187,58809.0,58799.0,0.00752692]
[1617392077857,0.41498092,58808.0,58799.0,0.00752692]
[1617392078056,0.4221938,58807.0,58799.0,0.00752692]
[1617392078481,0.265,58806.0,58799.0,0.00752692]
[1617392079140,0.255134,58804.0,58799.0,0.00752692]
[1617392079348,0.225,58802.0,58799.0,0.00752692]
[1617392079540,0.1,58803.0,58799.0,0.00752692]
[1617392079739,0.05,58802.0,58799.0,0.00752692]
[1617392079943,1.7256,58818.0,58799.0,0.00752692]
[1617392080138,0.504,58812.0,58799.0,0.00752692]
[1617392080335,0.255,58811.0,58799.0,0.00752692]
[1617392080737,0.415,58811.0,58799.0,0.00752692]
[1617392080936,0.255122,58806.0,58799.0,0.00752692]
[1617392081134,0.07256873,58805.0,58799.0,0.00752692]
[1617392081341,0.17256873,58805.0,58799.0,0.00752692]
[1617392081537,0.07256873,58805.0,58799.0,0.00752692]
[1617392081737,0.17256873,58805.0,58799.0,0.00752692]
[1617392081941,0.07256746,58804.0,58799.0,0.00752692]
[1617392082144,0.16,58811.0,58799.0,0.00752692]
[1617392082340,0.16,58811.0,58799.0,0.84533312]
[1617392082537,0.16,58811.0,58799.0,0.46046692]
[1617392082739,0.16,58811.0,58800.0,0.15]
[1617392082936,0.16,58811.0,58799.0,0.00752692]
[1617392083535,0.002,58815.0,58799.0,0.00752692]
[1617392083733,0.004,58815.0,58799.0,0.00752692]
[1617392084535,0.54948516,58805.0,58799.0,0.00752692]
[1617392088992,0.1621938,58804.0,58799.0,0.00752692]
[1617392089186,0.09,58804.0,58799.0,0.00752692]
[1617392089788,0.59948516,58805.0,58799.0,0.00752692]
[1617392089989,0.00254064,58803.0,58799.0,0.00752692]
[1617392090792,0.00254064,58803.0,58800.0,0.16]
[1617392090987,0.00254064,58803.0,58800.0,0.54973]
[1617392091186,0.00254064,58803.0,58801.0,0.6401451]
[1617392091602,0.00254064,58803.0,58802.0,0.843519]
[1617392092207,0.00254064,58803.0,58802.0,0.388519]
[1617392092406,0.00254064,58803.0,58799.0,0.00752692]
[1617392092606,0.00254064,58803.0,58802.0,0.164]
[1617392092811,0.00254064,58803.0,58802.0,0.969319]
[1617392093005,0.00254064,58803.0,58802.0,1.2209451]
[1617392093205,0.00254064,58803.0,58802.0,1.309319]
[1617392094064,0.00254064,58803.0,58802.0,1.145319]
[1617392094267,0.00254064,58803.0,58802.0,0.805319]
[1617392094864,0.5270258,58805.0,58802.0,0.805319]
[1617392095065,0.5270258,58805.0,58802.0,0.4168]
[1617392096872,0.5270258,58805.0,58799.0,0.00752692]
[1617392097474,0.5270258,58805.0,58800.0,1.2263252]
[1617392097676,0.5270258,58805.0,58801.0,1.2678062]
[1617392097871,0.5270258,58805.0,58802.0,0.388519]
[1617392098473,0.5270258,58805.0,58804.0,4.408519]
[1617392098676,0.5270258,58805.0,58804.0,0.94546274]
[1617392098885,0.5270258,58805.0,58804.0,1.6983252]
[1617392099076,0.5170258,58805.0,58804.0,5.28546274]
[1617392099274,0.5170258,58805.0,58804.0,5.01546274]
[1617392100085,0.5170258,58805.0,58804.0,5.27049074]
[1617392100684,0.5170258,58805.0,58804.0,1.24049074]
[1617392100888,0.5170258,58805.0,58804.0,0.388519]
[1617392101287,0.5170258,58805.0,58804.0,3.848519]
[1617392101494,0.5170258,58805.0,58804.0,1.18846274]
[1617392101688,0.5170258,58805.0,58804.0,0.25]
[1617392101884,0.5170258,58805.0,58801.0,0.48500846]
[1617392102103,0.5170258,58805.0,58802.0,0.388519]
[1617392102904,0.5170258,58805.0,58802.0,0.735019]
[1617392103304,0.5170258,58805.0,58803.0,0.19]
[1617392103504,0.5170258,58805.0,58804.0,4.97946274]
[1617392105133,0.5170258,58805.0,58804.0,5.01946274]
[1617392105335,0.5170258,58805.0,58804.0,6.01946274]
[1617392105730,0.5170258,58805.0,58804.0,6.94623232]
[1617392105930,0.5170258,58805.0,58804.0,6.10842612]
[1617392106129,0.5170258,58805.0,58804.0,6.11739718]
[1617392106531,0.5170258,58805.0,58804.0,7.25520338]
[1617392106741,0.5170258,58805.0,58804.0,6.41739718]
[1617392106931,0.5170258,58805.0,58804.0,7.25520338]
[1617392107132,0.5170258,58805.0,58804.0,7.51023038]
[1617392107762,0.5551258,58805.0,58804.0,7.51023038]
[1617392107963,0.5551258,58805.0,58804.0,6.67242418]
[1617392108807,0.5551258,58805.0,58804.0,7.86439562]
[1617392109002,0.5551258,58805.0,58804.0,7.51023038]
[1617392109408,0.5551258,58805.0,58804.0,6.67242418]
[1617392109599,0.5551258,58805.0,58804.0,7.51023038]
[1617392110200,0.5551258,58805.0,58804.0,6.67242418]
[1617392110407,0.5551258,58805.0,58804.0,7.51023038]
[1617392110605,0.5551258,58805.0,58804.0,6.67242418]
[1617392110803,0.5551258,58805.0,58804.0,7.02658942]
[1617392111002,0.5501258,58805.0,58804.0,6.67242418]
[1617392111202,0.5501258,58805.0,58804.0,7.51023038]
[1617392111405,0.5501258,58805.0,58804.0,6.81741264]
[1617392111605,0.5120258,58805.0,58804.0,7.65521884]
[1617392111805,0.5120258,58805.0,58804.0,6.81741264]
[1617392112009,0.5120258,58805.0,58804.0,7.65521884]
[1617392112407,0.5120258,58805.0,58804.0,6.81741264]
[1617392112619,0.5120258,58805.0,58804.0,7.65521884]
[1617392113020,0.5120258,58805.0,58804.0,6.81741264]
[1617392118560,0.5120258,58805.0,58804.0,6.77741264]
[1617392118964,0.5120258,58805.0,58804.0,2.74741264]
[1617392119167,0.5120258,58805.0,58804.0,1.58141264]
[1617392119371,0.5120258,58805.0,58804.0,0.74148044]
[1617392119572,0.5120258,58805.0,58804.0,0.48645344]
[1617392119780,0.5120258,58805.0,58804.0,0.00897106]
[1617392120595,0.6570258,58805.0,58804.0,0.00897106]
[1617392121597,0.5120258,58805.0,58804.0,0.00897106]
[1617392121994,0.5120258,58805.0,58804.0,4.03897106]
[1617392122196,0.5120258,58805.0,58804.0,4.9814338]
[1617392122597,0.5120258,58805.0,58804.0,1.09642226]
[1617392122797,0.5120258,58805.0,58804.0,0.54247852]
[1617392122996,0.5120258,58805.0,58804.0,0.71747852]
[1617392123633,0.5120258,58805.0,58804.0,0.72849006]
[1617392123862,0.5120258,58805.0,58804.0,0.57249006]
[1617392124062,0.5120258,58805.0,58804.0,2.7574338]
[1617392124260,0.5120258,58805.0,58804.0,2.5824338]
[1617392124462,0.5120258,58805.0,58804.0,2.18749006]
[1617392124660,0.5120258,58805.0,58804.0,2.33247852]
[1617392125264,0.5120258,58805.0,58804.0,2.88142226]
[1617392125463,0.5120258,58805.0,58804.0,3.34642226]
[1617392125864,0.5120258,58805.0,58804.0,3.43538564]
[1617392126061,0.5120258,58805.0,58804.0,5.71538564]
[1617392126262,0.5120258,58805.0,58804.0,5.67538564]
[1617392126466,0.5120258,58805.0,58804.0,6.72490184]
[1617392126663,0.5120258,58805.0,58804.0,7.01490184]
[1617392126862,0.5120258,58805.0,58804.0,6.17709564]
[1617392128663,0.5120258,58805.0,58804.0,3.83284564]
[1617392128865,0.5070258,58805.0,58804.0,5.78284564]
[1617392129063,0.5070258,58805.0,58804.0,3.43538564]
[1617392129270,0.5070258,58805.0,58804.0,1.49138564]
[1617392129471,0.5070258,58805.0,58804.0,0.7079229]
[1617392129673,0.5070258,58805.0,58804.0,0.09793444]
[1617392129870,0.5070258,58805.0,58804.0,0.00897106]
[1617392130466,0.5070258,58805.0,58803.0,0.005108]
[1617392131488,0.5070258,58805.0,58804.0,4.583519]
[1617392131689,0.5070258,58805.0,58804.0,6.70511011]
[1617392131884,0.5070258,58805.0,58804.0,6.76326011]
[1617392132093,0.5070258,58805.0,58804.0,6.89222349]
[1617392132890,0.5170258,58805.0,58804.0,6.89222349]
[1617392133289,0.5170258,58805.0,58804.0,6.88722349]
[1617392134518,0.5170258,58805.0,58804.0,2.29407349]
[1617392134721,0.5170258,58805.0,58804.0,1.59249975]
[1617392134919,0.5170258,58805.0,58804.0,0.73251238]
[1617392135522,0.51961289,58805.0,58804.0,0.73251238]
[1617392135918,0.51961289,58805.0,58804.0,2.18251238]
[1617392136541,0.51961289,58805.0,58804.0,0.73251238]
[1617392136741,0.51961289,58805.0,58804.0,0.86751238]
[1617392137142,0.51461289,58805.0,58804.0,4.39751238]
[1617392137339,0.51461289,58805.0,58804.0,4.26251238]
[1617392137541,0.51461289,58805.0,58804.0,4.65245612]
[1617392137740,0.50961289,58805.0,58804.0,3.86245612]
[1617392138144,0.50461289,58805.0,58804.0,4.00744349]
[1617392138343,0.50461289,58805.0,58804.0,1.26744349]
[1617392138546,0.50461289,58805.0,58804.0,0.87749975]
[1617392138946,0.50461289,58805.0,58804.0,2.40853637]
[1617392139147,0.49961289,58805.0,58804.0,4.43853637]
[1617392139354,0.49961289,58805.0,58804.0,4.82848011]
[1617392139554,0.49961289,58805.0,58804.0,5.55848011]
[1617392139751,0.49961289,58805.0,58804.0,5.55348011]
[1617392139949,0.49961289,58805.0,58804.0,3.82348011]
[1617392140152,0.49961289,58805.0,58804.0,3.68448011]
[1617392140355,0.49961289,58805.0,58804.0,4.06686011]
[1617392140553,0.49461289,58805.0,58804.0,2.28586011]
[1617392140760,0.49461289,58805.0,58804.0,1.00127449]
[1617392140955,0.49461289,58805.0,58804.0,0.61633075]
[1617392141154,0.49461289,58805.0,58804.0,0.47134338]
[1617392141350,0.49461289,58805.0,58804.0,0.08896338]
[1617392141775,0.49461289,58805.0,58803.0,0.005108]
[1617392141974,0.49461289,58805.0,58803.0,0.000108]
[1617392142573,0.49461289,58805.0,58804.0,3.29346274]
[1617392142776,0.49461289,58805.0,58804.0,5.84646274]
[1617392142977,0.49461289,58805.0,58804.0,6.01276274]
[1617392143177,0.49461289,58805.0,58804.0,5.99475011]
[1617392143772,0.49461289,58805.0,58804.0,4.48475011]
[1617392144799,0.49461289,58805.0,58804.0,4.01845011]
[1617392144999,0.4917564,58805.0,58804.0,4.01845011]
[1617392147226,0.4917564,58805.0,58804.0,4.17145011]
[1617392147427,0.4917564,58805.0,58804.0,4.57066011]
[1617392149026,0.4917564,58805.0,58804.0,4.41766011]
[1617392149440,0.4917564,58805.0,58804.0,4.58266011]
[1617392149644,0.4917564,58805.0,58804.0,6.09266011]
[1617392149847,0.4917564,58805.0,58804.0,6.19533011]
[1617392150043,0.4917564,58805.0,58804.0,4.68533011]
[1617392150242,0.4917564,58805.0,58804.0,4.52033011]
[1617392150844,0.4917564,58805.0,58804.0,4.61826455]
[1617392151250,0.4917564,58805.0,58804.0,2.09826455]
[1617392151453,0.4917564,58805.0,58804.0,0.62786555]
[1617392151659,3.0117564,58805.0,58804.0,0.24292181]
[1617392151848,1.1317564,58805.0,58804.0,0.00897106]
[1617392152080,0.9817564,58805.0,58804.0,0.00897106]
[1617392152281,0.4917564,58805.0,58804.0,0.00897106]